bitfinex/quotes_SOLUSD_20220118
["timestamp","ask_amount","ask_price","bid_price","bid_amount"]
[1642500096499,6.0,137.28,137.22,19.813]
[1642500096700,13.8417,137.31,137.22,36.7396]
[1642500096897,2.914,137.31,137.23,24.7029]
[1642500097100,44.06382354,137.3,137.24,52.17648349]
[1642500097299,0.25,137.29,137.24,52.17648349]
[1642500097904,44.06382354,137.3,137.24,52.17648349]
[1642500098305,44.06382354,137.3,137.24,55.08848349]
[1642500099336,0.25,137.29,137.24,55.08848349]
[1642500099739,44.06382354,137.3,137.24,55.08848349]
[1642500099937,36.7272,137.33,137.25,0.25]
[1642500100137,33.8152,137.33,137.26,10.48]
[1642500100337,10.9254,137.33,137.26,16.48]
[1642500100935,10.9254,137.33,137.26,10.48]
[1642500101135,3.162,137.32,137.26,10.48]
[1642500101337,10.9289,137.31,137.26,10.48]
[1642500101538,45.25162871,137.3,137.25,2.06595482]
[1642500101735,2.912,137.29,137.25,2.06595482]
[1642500102135,0.25,137.28,137.25,2.06595482]
[1642500102340,6.06439994,137.27,137.24,2.06595482]
[1642500102538,2.914,137.26,137.24,2.06595482]
[1642500102737,3.164,137.26,137.24,2.06595482]
[1642500102937,9.164,137.26,137.24,2.06595482]
[1642500103138,6.25,137.26,137.21,12.54595482]
[1642500103340,45.89879937,137.25,137.21,12.54595482]
[1642500103840,0.25,137.24,137.21,12.54595482]
[1642500104638,6.06439994,137.23,137.21,12.54595482]
[1642500104840,0.25,137.22,137.21,10.48]
[1642500105040,47.17374895,137.22,137.21,10.48]
[1642500106140,0.25,137.22,137.21,10.48]
[1642500107139,0.25,137.22,137.21,7.48]
[1642500113442,6.31439994,137.22,137.21,7.48]
[1642500113643,41.41104074,137.22,137.21,7.48]
[1642500113843,47.41104074,137.22,137.21,7.48]
[1642500116056,47.41104074,137.22,137.19,2.06595482]
[1642500117360,2.915,137.21,137.19,2.06595482]
[1642500117561,2.915,137.21,137.16,14.60145328]
[1642500117763,0.25,137.2,137.16,14.60145328]
[1642500118763,8.231,137.2,137.16,14.60145328]
[1642500118962,8.231,137.2,137.16,10.48]
[1642500118963,39.85029635,137.19,137.16,10.48]
[1642500119364,0.25,137.18,137.16,10.48]
[1642500119763,2.915,137.21,137.16,10.48]
[1642500119965,2.915,137.21,137.16,17.441]
[1642500120763,47.09135274,137.21,137.16,54.37304266]
[1642500120964,6.0,137.22,137.16,54.37304266]
[1642500121165,6.0,137.22,137.17,2.915]
[1642500121464,6.0,137.23,137.18,10.48]
[1642500121864,44.51088521,137.25,137.18,10.48]
[1642500122066,2.915,137.24,137.18,10.48]
[1642500122365,19.8477,137.24,137.18,10.48]
[1642500123164,0.25,137.23,137.18,10.48]
[1642500123367,11.1837,137.23,137.18,10.48]
[1642500123566,43.62853484,137.21,137.18,10.48]
[1642500123768,6.06439994,137.2,137.18,10.48]
[1642500125893,0.25,137.19,137.18,10.48]
[1642500126996,3.03219997,137.18,137.16,2.915]
[1642500127195,3.03219997,137.18,137.16,10.48]
[1642500127395,3.03219997,137.17,137.16,10.48]
[1642500127998,51.41914731,137.18,137.16,10.48]
[1642500128197,13.8492,137.23,137.16,10.48]
[1642500128395,0.25,137.2,137.16,10.48]
[1642500129195,0.25,137.2,137.17,44.57471659]
[1642500129397,0.25,137.2,137.18,10.48]
[1642500129597,0.25,137.21,137.18,11.97755186]
[1642500129997,3.03219997,137.2,137.18,11.97755186]
[1642500130398,0.25,137.19,137.18,11.97755186]
[1642500130599,53.74539211,137.22,137.18,10.48]
[1642500130800,2.915,137.24,137.18,57.62894656]
[1642500130997,2.915,137.26,137.18,63.62894656]
[1642500131200,3.165,137.26,137.18,63.62894656]
[1642500131498,2.915,137.26,137.18,63.62894656]
[1642500131698,23.8654,137.31,137.19,131.22]
[1642500131699,44.69792044,137.27,137.19,131.22]
[1642500131901,41.78292044,137.27,137.2,10.48]
[1642500132100,41.78292044,137.27,137.21,44.4275469]
[1642500132300,41.78292044,137.27,137.22,10.48]
[1642500132699,41.78292044,137.27,137.22,16.48]
[1642500133502,41.78292044,137.27,137.22,27.4067]
[1642500133801,41.78292044,137.27,137.22,30.3207]
[1642500134203,41.78292044,137.27,137.22,30.5807]
[1642500134402,41.78292044,137.27,137.22,19.394]
[1642500134602,0.25,137.26,137.22,19.394]
[1642500134802,0.25,137.26,137.22,6.0]
[1642500134803,3.164,137.26,137.22,6.0]
[1642500135002,3.164,137.26,137.19,20.60145328]
[1642500135203,3.164,137.26,137.19,14.60145328]
[1642500135402,3.164,137.26,137.19,10.48]
[1642500135904,14.0952,137.26,137.19,10.48]
[1642500137203,20.0952,137.26,137.17,4.12145328]
[1642500137402,20.0952,137.26,137.17,10.12145328]
[1642500137807,20.0952,137.26,137.17,6.0]
[1642500138003,20.0952,137.26,137.16,62.70125328]
[1642500138607,20.0952,137.26,137.16,58.5798]
[1642500139608,13.8452,137.26,137.16,64.5798]
[1642500140814,0.25,137.25,137.17,39.96803734]
[1642500141008,2.915,137.24,137.18,10.48]
[1642500141209,10.9335,137.23,137.18,10.48]
[1642500141411,11.1835,137.23,137.18,10.48]
[1642500141612,17.1835,137.23,137.18,10.48]
[1642500142212,47.52896586,137.22,137.18,10.48]
[1642500142611,0.25,137.21,137.18,10.48]
[1642500142812,3.03219997,137.2,137.18,10.48]
[1642500143012,0.25,137.21,137.18,10.48]
[1642500143415,3.03219997,137.2,137.18,10.48]
[1642500143614,0.25,137.21,137.18,10.48]
[1642500143814,0.25,137.19,137.18,10.48]
[1642500145516,47.52896586,137.22,137.18,10.48]
[1642500145716,47.52896586,137.22,137.18,12.23187397]
[1642500145920,47.52896586,137.22,137.18,11.98187397]
[1642500146116,47.52896586,137.22,137.18,17.98187397]
[1642500146517,47.52896586,137.22,137.18,16.48]
[1642500146718,47.52896586,137.22,137.18,10.48]
[1642500147726,0.25,137.21,137.18,10.48]
[1642500148322,6.06439994,137.2,137.15,19.01832725]
[1642500148624,45.86801675,137.19,137.16,6.0]
[1642500148821,46.11801675,137.19,137.15,17.98187397]
[1642500149922,46.11801675,137.19,137.15,16.48]
[1642500153047,53.57101675,137.19,137.15,16.48]
[1642500153247,53.57101675,137.19,137.15,10.48]
[1642500153450,64.50791675,137.19,137.13,7.03645328]
[1642500153652,2.916,137.18,137.12,14.60145328]
[1642500153851,0.25,137.17,137.12,20.60145328]
[1642500154249,0.25,137.17,137.12,14.60145328]
[1642500154453,11.1883,137.17,137.12,14.60145328]
[1642500154749,2.916,137.16,137.1,4.12145328]
[1642500155149,0.25,137.15,137.1,4.12145328]
[1642500155349,2.916,137.14,137.1,4.12145328]
[1642500155552,8.79,137.14,137.08,10.48]
[1642500155750,0.25,137.13,137.08,10.48]
[1642500155950,2.916,137.12,137.09,4.1542814]
[1642500156152,6.06439994,137.11,137.09,4.1542814]
[1642500156351,6.31439994,137.11,137.09,4.1542814]
[1642500156851,49.36491006,137.1,137.06,13.396]
[1642500157052,49.36491006,137.1,137.06,2.916]
[1642500157252,0.25,137.09,137.06,2.916]
[1642500157451,6.06439994,137.08,137.06,2.916]
[1642500157851,36.89889882,137.07,137.06,2.916]
[1642500158051,36.64889882,137.07,137.03,11.97467258]
[1642500158252,36.64889882,137.07,137.04,3.168]
[1642500158453,36.64889882,137.07,137.04,0.25]
[1642500158655,10.9431,137.11,137.04,1.74467258]
[1642500158853,0.25,137.1,137.04,7.74467258]
[1642500159654,0.25,137.1,137.04,7.49467258]
[1642500159856,0.25,137.11,137.04,6.0]
[1642500160154,34.90844997,137.09,137.04,6.0]
[1642500160354,0.25,137.08,137.03,16.48]
[1642500160556,0.25,137.08,137.03,10.48]
[1642500160756,6.668,137.08,137.03,10.48]
[1642500161755,20.5315,137.08,137.03,10.48]
[1642500162855,20.5315,137.08,137.01,2.918]
[1642500163057,26.5315,137.08,137.01,2.918]
[1642500164056,99.1415,137.08,137.01,2.918]
[1642500164455,99.1415,137.08,136.99,6.18217992]
[1642500164658,99.1415,137.08,136.99,12.18217992]
[1642500165056,99.1415,137.08,136.99,6.0]
[1642500165255,99.1415,137.08,136.96,16.48]
[1642500166758,98.8915,137.08,136.96,16.48]
[1642500167158,98.8915,137.08,136.97,0.25]
[1642500167859,0.25,137.07,136.96,16.48]
[1642500168060,10.949,137.04,136.96,16.48]
[1642500168260,0.25,137.03,136.97,0.25]
[1642500168459,2.919,137.06,136.97,0.25]
[1642500168659,48.54014504,137.06,136.98,10.48]
[1642500168861,48.54014504,137.06,136.99,0.25]
[1642500169059,48.54014504,137.06,136.98,16.48]
[1642500169259,59.48714504,137.06,136.98,16.48]
[1642500169861,0.25,137.05,136.98,16.48]
[1642500170059,3.169,137.05,136.98,16.48]
[1642500170259,14.1168,137.05,136.98,16.48]
[1642500170661,72.61,137.04,136.98,0.76490945]
[1642500170863,3.169,137.03,136.95,6.18217992]
[1642500171262,9.169,137.03,136.95,6.18217992]
[1642500171467,10.953,137.0,136.95,6.18217992]
[1642500171764,40.10941005,136.98,136.95,6.18217992]
[1642500171964,6.06439994,136.97,136.93,0.36500896]
[1642500172765,6.06439994,136.97,136.93,0.61500896]
[1642500172965,2.92,137.0,136.93,22.04520896]
[1642500173167,2.92,137.02,136.93,22.04520896]
[1642500173366,2.92,137.02,136.93,28.04520896]
[1642500173766,35.29581785,137.01,136.93,28.04520896]
[1642500174166,3.17,137.0,136.93,27.79520896]
[1642500174566,0.25,137.0,136.95,10.9487]
[1642500174766,0.25,137.0,136.95,16.9487]
[1642500175467,0.25,137.0,136.95,6.0]
[1642500175765,0.25,137.0,136.95,10.9484]
[1642500176167,0.25,137.0,136.95,16.9484]
[1642500176366,35.29581785,137.01,136.96,0.25]
[1642500176568,2.92,137.05,136.96,38.39898565]
[1642500176766,2.92,137.05,136.96,44.39898565]
[1642500177266,2.92,137.05,136.96,66.91888565]
[1642500177467,2.92,137.05,136.97,10.9466]
[1642500177699,2.919,137.06,136.97,10.9466]
[1642500177868,2.919,137.06,136.98,0.25]
[1642500178869,0.25,137.05,136.98,0.25]
[1642500179269,0.25,137.06,136.98,0.25]
[1642500179469,0.25,137.06,137.0,10.9441]
[1642500179868,0.25,137.06,137.0,6.0]
[1642500180270,0.25,137.06,136.98,30.4204]
[1642500181475,0.25,137.06,136.98,41.3661]
[1642500181677,0.25,137.06,136.99,40.68094617]
[1642500181974,0.25,137.06,137.0,0.25]
[1642500183074,0.25,137.06,136.99,0.25]
[1642500183474,2.919,137.05,136.98,6.0]
[1642500183677,35.27929379,137.04,136.97,16.48]
[1642500183877,35.52929379,137.04,136.98,0.25]
[1642500185777,35.27929379,137.04,136.98,0.25]
[1642500186178,35.27929379,137.04,136.98,44.00579046]
[1642500186379,35.27929379,137.04,136.98,50.00579046]
[1642500186784,35.27929379,137.04,136.98,60.48579046]
[1642500187179,2.919,137.06,136.98,60.48579046]
[1642500187380,2.919,137.07,136.98,71.43219046]
[1642500187679,2.919,137.1,136.99,72.61]
[1642500187882,2.918,137.13,137.0,10.73]
[1642500188080,23.1587,137.12,137.01,23.6958]
[1642500188279,41.72081713,137.11,137.02,10.48]
[1642500188779,11.1945,137.1,137.02,16.48]
[1642500188978,2.918,137.09,137.02,6.0]
[1642500189380,35.74087728,137.08,137.03,0.25]
[1642500189579,2.918,137.11,137.03,0.25]
[1642500189782,2.918,137.11,137.03,21.6724]
[1642500190179,2.918,137.11,137.03,27.6724]
[1642500190682,39.28456418,137.11,137.04,41.41364181]
[1642500190880,39.28456418,137.11,137.05,0.25]
[1642500191082,0.25,137.1,137.05,0.25]
[1642500191885,39.28456418,137.11,137.05,0.25]
[1642500192084,36.36656418,137.11,137.05,0.25]
[1642500194185,0.25,137.1,137.05,0.25]
[1642500194387,3.168,137.1,137.05,0.25]
[1642500194586,3.168,137.1,137.04,0.25]
[1642500196187,2.918,137.1,137.04,0.25]
[1642500196388,2.918,137.13,137.04,10.73]
[1642500196590,4.62044184,137.14,137.04,34.99686567]
[1642500196791,1.70444184,137.14,137.04,41.25686567]
[1642500196992,1.70444184,137.14,137.04,52.19836567]
[1642500197190,39.11882711,137.14,137.05,43.06556649]
[1642500197490,39.11882711,137.14,137.06,10.73]
[1642500197990,39.11882711,137.14,137.06,16.73]
[1642500198394,0.25,137.13,137.07,10.939]
[1642500198593,0.25,137.13,137.06,16.48]
[1642500198594,2.916,137.12,137.06,16.48]
[1642500198791,0.25,137.11,137.06,16.48]
[1642500199599,41.61047973,137.11,137.06,16.48]
[1642500200324,41.61047973,137.11,137.04,22.7807]
[1642500200525,2.918,137.1,137.04,28.7807]
[1642500200828,0.25,137.09,137.04,28.7807]
[1642500201024,2.918,137.08,137.04,22.7807]
[1642500201227,0.25,137.09,137.05,41.81121091]
[1642500201625,2.918,137.1,137.05,41.81121091]
[1642500201826,2.918,137.13,137.06,10.73]
[1642500202026,4.62044184,137.14,137.06,10.73]
[1642500202427,4.62044184,137.14,137.06,16.73]
[1642500202727,43.76393733,137.13,137.06,16.73]
[1642500203929,2.916,137.14,137.06,16.73]
[1642500204128,2.916,137.19,137.06,25.19816567]
[1642500204328,0.25,137.18,137.06,25.45816567]
[1642500204528,2.916,137.17,137.06,25.45816567]
[1642500204731,2.916,137.17,137.07,23.7491]
[1642500204928,41.49111867,137.16,137.08,21.4179]
[1642500205130,41.24111867,137.16,137.08,21.6679]
[1642500205328,41.24111867,137.16,137.08,27.6679]
[1642500206131,2.916,137.15,137.08,27.6679]
[1642500206533,0.25,137.14,137.08,27.6679]
[1642500208232,0.25,137.14,137.08,16.73]
[1642500209432,0.25,137.14,137.08,27.6683]
[1642500209835,2.916,137.15,137.09,46.33243663]
[1642500210035,2.916,137.21,137.1,10.48]
[1642500210236,2.916,137.22,137.11,24.68]
[1642500210434,6.19686973,137.23,137.12,10.48]
[1642500210635,6.19686973,137.23,137.13,24.7392]
[1642500210836,6.19686973,137.23,137.14,10.73]
[1642500211040,36.8049977,137.22,137.15,54.35336471]
[1642500211236,36.8049977,137.22,137.16,10.73]
[1642500211436,2.916,137.24,137.16,10.73]
[1642500211635,1.54305597,137.25,137.16,18.21616567]
[1642500212037,1.54305597,137.25,137.16,16.73]
[1642500212236,12.47495597,137.25,137.16,27.662]
[1642500212439,12.47495597,137.25,137.16,16.48]
[1642500212637,14.26400869,137.25,137.16,16.48]
[1642500212836,2.915,137.24,137.11,10.48]
[1642500213038,44.22930092,137.23,137.11,10.48]
[1642500213240,72.61,137.21,137.11,16.48]
[1642500213438,2.916,137.2,137.09,10.9371]
[1642500213739,28.68105272,137.2,137.09,6.0]
[1642500213938,34.68105272,137.2,137.08,16.48]
[1642500214137,10.938,137.18,137.08,27.4185]
[1642500214340,0.25,137.17,137.09,22.8969]
[1642500214638,0.25,137.17,137.09,33.3769]
[1642500214839,0.25,137.17,137.09,39.3769]
[1642500215239,0.25,137.17,137.1,11.1868]
[1642500215441,0.25,137.17,137.1,55.24838669]
[1642500215640,0.25,137.17,137.1,61.24838669]
[1642500215843,34.54556408,137.18,137.11,10.48]
[1642500216042,2.916,137.21,137.11,10.48]
[1642500216242,2.916,137.24,137.12,98.76456567]
[1642500216442,2.916,137.24,137.14,10.933]
[1642500216642,2.916,137.24,137.15,33.7097]
[1642500216944,45.84115017,137.24,137.16,38.8325814]
[1642500217143,45.84115017,137.24,137.16,50.79874707]
[1642500217343,45.84115017,137.24,137.16,56.79874707]
[1642500217545,45.84115017,137.24,137.16,27.6615]
[1642500217752,45.84115017,137.24,137.17,0.25]
[1642500217950,48.75615017,137.24,137.17,0.25]
[1642500218652,0.25,137.23,137.17,0.25]
[1642500221453,0.25,137.23,137.16,27.4121]
[1642500221652,32.93371483,137.21,137.16,27.4121]
[1642500221854,32.93371483,137.21,137.16,16.48]
[1642500222854,32.93371483,137.21,137.17,0.25]
[1642500223256,0.25,137.2,137.16,10.48]
[1642500223454,32.93371483,137.21,137.16,10.48]
[1642500224257,3.165,137.23,137.17,1.48616567]
[1642500224457,0.25,137.23,137.17,1.48616567]
[1642500224657,27.6233,137.24,137.18,10.73]
[1642500224857,1.54305597,137.25,137.18,16.73]
[1642500225460,48.0927829,137.24,137.18,16.73]
[1642500228358,48.0927829,137.24,137.18,16.48]
[1642500228559,56.5097829,137.24,137.15,24.71586567]
[1642500228762,3.165,137.23,137.15,29.2297]
[1642500228960,3.165,137.23,137.15,6.0]
[1642500229360,3.165,137.23,137.14,10.48]
[1642500229361,75.775,137.23,137.14,16.48]
[1642500230563,10.9358,137.22,137.14,16.48]
[1642500230764,3.165,137.21,137.14,16.48]
[1642500231567,22.9101824,137.2,137.14,16.48]
[1642500231764,0.25,137.19,137.14,16.48]
[1642500232067,0.25,137.19,137.14,10.48]
[1642500232466,0.25,137.19,137.1,10.48]
[1642500232666,36.99358457,137.17,137.11,6.0]
[1642500232867,36.99358457,137.17,137.11,0.25]
[1642500232868,0.25,137.16,137.11,0.25]
[1642500234169,11.1891,137.16,137.11,0.25]
[1642500234365,11.1891,137.16,137.08,41.1527]
[1642500234565,2.916,137.15,137.08,16.48]
[1642500234767,0.25,137.14,137.08,10.48]
[1642500234965,36.92538073,137.13,137.08,10.48]
[1642500235165,2.916,137.13,137.08,16.48]
[1642500235365,2.916,137.13,137.08,17.96616567]
[1642500235568,2.916,137.16,137.08,17.96616567]
[1642500235765,2.916,137.16,137.09,0.25]
[1642500236165,46.10215174,137.15,137.09,0.25]
[1642500238369,0.25,137.14,137.09,0.25]
[1642500238568,46.10215174,137.15,137.09,0.25]
[1642500238773,45.85215174,137.15,137.09,0.25]
[1642500239069,45.85215174,137.15,137.08,28.90466567]
[1642500239271,45.85215174,137.15,137.09,0.25]
[1642500239470,45.85215174,137.15,137.08,28.90466567]
[1642500239672,45.85215174,137.15,137.08,17.96616567]
[1642500239970,45.85215174,137.15,137.08,16.48]
[1642500240371,0.25,137.14,137.09,0.25]
[1642500240674,0.25,137.14,137.08,16.48]
[1642500240870,24.90081356,137.12,137.08,16.48]
[1642500241872,24.90081356,137.12,137.09,0.25]
[1642500242072,0.25,137.15,137.09,0.25]
[1642500242675,0.25,137.15,137.09,10.73]
[1642500242882,2.916,137.16,137.09,16.73]
[1642500243079,47.15361737,137.15,137.09,16.73]
[1642500244184,0.25,137.14,137.09,63.37374395]
[1642500244381,2.916,137.16,137.09,75.79760962]
[1642500244582,2.916,137.19,137.09,76.05760962]
[1642500244783,2.916,137.19,137.1,23.5887]
[1642500244982,2.916,137.19,137.11,83.09]
[1642500245182,2.916,137.21,137.11,84.82616567]
[1642500245382,38.71365228,137.21,137.12,63.08609001]
[1642500245583,38.71365228,137.21,137.14,10.9322]
[1642500245782,38.71365228,137.21,137.15,50.31316054]
[1642500245984,38.71365228,137.21,137.15,51.79932621]
[1642500246182,38.71365228,137.21,137.15,57.79932621]
[1642500246382,38.71365228,137.21,137.16,1.48616567]
[1642500246584,38.71365228,137.21,137.17,10.48]
[1642500246783,38.71365228,137.21,137.17,16.48]
[1642500248285,2.915,137.22,137.17,16.48]
[1642500248485,2.915,137.24,137.17,16.48]
[1642500248684,4.90776831,137.26,137.18,0.25]
[1642500248885,4.90776831,137.26,137.18,10.73]
[1642500249312,48.32624768,137.25,137.18,63.83652815]
[1642500249811,48.32624768,137.25,137.18,16.73]
[1642500250210,48.32624768,137.25,137.19,10.9297]
[1642500250413,48.32624768,137.25,137.19,12.41586567]
[1642500250610,48.32624768,137.25,137.2,0.25]
[1642500251312,2.915,137.26,137.2,21.6587]
[1642500251515,1.99276831,137.28,137.2,21.6587]
[1642500251713,1.99276831,137.28,137.2,29.40486567]
[1642500251913,1.99276831,137.28,137.2,36.96386567]
[1642500252111,1.99276831,137.28,137.2,35.4777]
[1642500252412,45.08517098,137.28,137.21,45.7965824]
[1642500252610,45.08517098,137.28,137.23,10.9258]
[1642500252812,45.08517098,137.28,137.24,10.73]
[1642500253312,45.08517098,137.28,137.24,16.73]
[1642500254511,45.08517098,137.28,137.24,27.6557]
[1642500256923,15.83306831,137.32,137.24,27.6557]
[1642500257124,4.90676831,137.32,137.24,27.6557]
[1642500257324,0.25,137.31,137.24,27.6557]
[1642500257524,2.912,137.3,137.24,27.6557]
[1642500257925,43.57684334,137.29,137.24,27.6557]
[1642500258125,43.32684334,137.29,137.24,27.6557]
[1642500258525,2.912,137.3,137.24,27.6557]
[1642500258927,1.99276831,137.32,137.24,27.9157]
[1642500258928,4.90476831,137.32,137.24,27.9157]
[1642500259125,4.90476831,137.32,137.24,100.5257]
[1642500259326,1.99276831,137.32,137.24,100.5257]
[1642500259926,4.90476831,137.33,137.24,100.5257]
[1642500260729,48.45799009,137.32,137.24,100.5257]
[1642500263032,2.912,137.31,137.24,100.5257]
[1642500263232,3.162,137.31,137.24,100.5257]
[1642500263833,3.162,137.31,137.24,94.2757]
[1642500265132,2.912,137.31,137.25,0.25]
[1642500265334,2.912,137.33,137.26,21.4022]
[1642500265533,1.99276831,137.34,137.26,21.4022]
[1642500265733,1.99276831,137.34,137.27,0.25]
[1642500265935,4.90476831,137.36,137.28,10.48]
[1642500266334,45.15014743,137.35,137.29,11.1701]
[1642500266537,1.99276831,137.36,137.3,10.48]
[1642500266736,1.99276831,137.36,137.31,0.25]
[1642500266938,1.99276831,137.36,137.32,10.48]
[1642500267339,1.99276831,137.36,137.33,0.25]
[1642500267541,1.99276831,137.36,137.34,10.48]
[1642500267768,1.99276831,137.36,137.35,0.25]
[1642500267968,1.99276831,137.36,137.35,10.73]
[1642500268263,1.99276831,137.38,137.35,16.73]
[1642500268863,1.99276831,137.38,137.35,16.48]
[1642500269465,38.07126433,137.39,137.35,16.48]
[1642500270165,4.90476831,137.41,137.35,27.397]
[1642500270765,0.25,137.4,137.35,27.397]
[1642500270964,47.23419243,137.4,137.35,27.397]
[1642500271364,2.912,137.41,137.35,27.397]
[1642500271565,2.912,137.41,137.36,11.1664]
[1642500271764,3.34111052,137.42,137.36,27.6464]
[1642500271964,1.99276831,137.4,137.36,27.6464]
[1642500274169,1.99276831,137.4,137.36,16.48]
[1642500274368,47.31462572,137.39,137.36,16.48]
[1642500274571,2.911,137.38,137.36,16.48]
[1642500274768,3.161,137.38,137.36,16.48]
[1642500274967,3.03219997,137.37,137.36,16.48]
[1642500275168,6.06439994,137.37,137.36,16.48]
[1642500275374,2.911,137.38,137.32,10.9188]
[1642500275573,2.911,137.38,137.33,10.48]
[1642500275775,2.911,137.38,137.33,10.73]
[1642500275974,2.911,137.38,137.33,10.48]
[1642500276174,2.911,137.38,137.34,0.25]
[1642500276374,2.912,137.41,137.35,10.48]
[1642500276576,2.911,137.44,137.35,10.48]
[1642500276879,3.161,137.44,137.35,10.48]
[1642500277077,3.161,137.44,137.36,0.25]
[1642500277279,36.32479579,137.43,137.35,16.48]
[1642500277478,2.911,137.42,137.35,16.48]
[1642500277678,3.161,137.42,137.35,16.48]
[1642500278279,3.161,137.42,137.36,0.25]
[1642500278580,2.911,137.42,137.37,50.86791035]
[1642500278777,36.32479579,137.43,137.38,0.25]
[1642500279180,36.32479579,137.43,137.37,16.48]
[1642500279480,3.161,137.42,137.37,6.0]
[1642500279879,3.161,137.42,137.35,16.48]
[1642500281683,14.0795,137.42,137.35,16.48]
[1642500281884,1.99276831,137.37,137.35,16.48]
[1642500282086,36.42093782,137.37,137.35,16.48]
[1642500282286,3.03219997,137.36,137.35,16.48]
[1642500282686,1.99276831,137.37,137.35,16.48]
[1642500282890,24.3591,137.42,137.35,16.48]
[1642500282891,1.99276831,137.36,137.35,16.48]
[1642500283790,1.99276831,137.37,137.35,16.48]
[1642500283991,1.99276831,137.37,137.35,27.397]
[1642500284195,1.99276831,137.37,137.36,28.25]
[1642500284391,1.99276831,137.37,137.36,52.381]
[1642500284594,1.99276831,137.38,137.36,52.381]
[1642500284794,1.99276831,137.38,137.36,52.641]
[1642500284992,1.99276831,137.38,137.36,24.381]
[1642500285193,1.99276831,137.38,137.36,35.2961]
[1642500286194,43.64302594,137.42,137.36,35.2961]
[1642500286195,1.99276831,137.4,137.36,35.2961]
[1642500286623,1.99276831,137.4,137.36,27.6451]
[1642500288824,1.99276831,137.4,137.36,16.48]
[1642500289326,0.25,137.39,137.36,16.48]
[1642500289826,29.35270767,137.39,137.36,10.48]
[1642500290026,6.06439994,137.38,137.36,10.48]
[1642500290426,0.25,137.37,137.3,10.48]
[1642500290725,0.25,137.37,137.3,10.73]
[1642500290929,0.25,137.37,137.3,16.73]
[1642500291326,0.25,137.37,137.3,27.6504]
[1642500291727,38.11608539,137.35,137.3,27.6504]
[1642500294739,38.11608539,137.35,137.3,27.4004]
[1642500296334,38.11608539,137.35,137.31,0.25]
[1642500296634,1.99276831,137.35,137.31,11.1701]
[1642500296837,1.99276831,137.35,137.32,10.48]
[1642500297774,1.99276831,137.35,137.32,21.3995]
[1642500298337,1.99276831,137.35,137.32,27.3995]
[1642500298838,1.99276831,137.35,137.33,0.25]
[1642500299037,1.99276831,137.35,137.34,48.27114788]
[1642500299239,1.99276831,137.35,137.34,56.00731258]
[1642500299742,1.99276831,137.35,137.34,16.73]
[1642500299941,1.99276831,137.38,137.34,27.6474]
[1642500300139,1.99276831,137.38,137.34,16.73]
[1642500300348,1.99276831,137.38,137.34,16.48]
[1642500300539,1.99276831,137.38,137.34,6.79178811]
[1642500300739,32.37817211,137.37,137.3,10.48]
[1642500301140,10.9234,137.36,137.3,10.48]
[1642500301340,3.162,137.35,137.3,10.48]
[1642500301540,0.25,137.35,137.3,10.48]
[1642500302040,2.24276831,137.35,137.3,10.48]
[1642500302640,2.24276831,137.35,137.3,45.39408071]
[1642500302839,1.99276831,137.35,137.31,0.25]
[1642500303041,1.99276831,137.35,137.32,10.48]